Workbook

Sheet 交安工程
A1: 2024年“A”项目交安工程清单及报价表
A2: 序号 | B2: 项目名称 | C2: 项目特征描述 | D2: 计量 单位 | E2: 工程量 | F2: 全费用单价限价（元） | G2: 限价合价 | H2: 班组所报全费用单价（元） | I2: 合价（元）
A3: 一 | B3: 交安工程
A4: 1 | B4: 挖沟槽、基坑土石方 | C4: 1.土石类别：土石综合 2.挖土深度：综合 3.开挖方式：投标人自行综合考虑 4.对管线、构筑物、建筑物等采取的保护措施，边坡施工防护及变形观测措施：由投标人自行确定，包含在投标报价中 5.未尽事宜满足设计及现行技术、质量验收规范要求 | D4: m3 | E4: 30 | F4: 15 | G4: =E4*F4 -> 450
A5: 2 | B5: 沟槽回填 | C5: 1.密实度要求：按设计及规范要求夯实 2.填方材料品种：满足设计规范要求（石方解小由投标人自行考虑，包含在投标报价中） 3.填方来源、运距：投标人自行综合考虑 4.对管线、构筑物、建筑物等采取的保护措施，边坡施工防护及变形观测措施：由投标人自行确定，包含在投标报价中 5.未尽事宜满足设计及现行技术、质量验收规范要求 | D5: m3 | E5: 10 | F5: 10 | G5: 100
A6: 3 | B6: 余方弃置 | C6: 1.废弃料品种：土石综合 2.场外运距、弃土场费用：投标人自行考虑 3.未尽事宜满足设计及现行技术、质量验收规范要求 | D6: m3 | E6: 20 | F6: 25 | G6: 500
A7: 4 | B7: 导向标记 | C7: 1.名称：导向标记 2.涂料品种：热熔型反光涂料，满足设计和施工验收要求 3.线型、设置宽度：满足设计和施工验收要求 4.涂料厚度：详设计 5.玻璃珠、涂料：热熔型涂料必须符合GB/T16311-2009《道路交通标线质量要求和检测方法》要求 6.未尽事宜满足设计及现行技术、质量验收规范要求 | D7: m2 | E7: 197.35 | F7: 40 | G7: 7894
A8: 5 | B8: 文字、图案标记 | C8: 1.名称：文字、图案标记 2.涂料品种：热熔型反光涂料，满足设计和施工验收要求 3.线型、设置宽度：满足设计和施工验收要求 4.涂料厚度：详设计 5.玻璃珠、涂料：热熔型涂料必须符合GB/T16311-2009《道路交通标线质量要求和检测方法》要求 6.未尽事宜满足设计及现行技术、质量验收规范要求 | D8: m2 | E8: 10.05 | F8: 40 | G8: 402
A9: 6 | B9: 横道线 | C9: 1.名称：横道线 2.涂料品种：热熔型反光涂料，满足设计和施工验收要求 3.线型、设置宽度：满足设计和施工验收要求 4.涂料厚度：详设计 5.玻璃珠、涂料：热熔型涂料必须符合GB/T16311-2009《道路交通标线质量要求和检测方法》要求 6.未尽事宜满足设计及现行技术、质量验收规范要求 | D9: m2 | E9: 423.34 | F9: 40 | G9: 16933.6
A10: 7 | B10: 实线 | C10: 1.名称：实线 2.涂料品种：热熔型反光涂料，满足设计和施工验收要求 3.线型、设置宽度：满足设计和施工验收要求 4.涂料厚度：详设计 5.玻璃珠、涂料：热熔型涂料必须符合GB/T16311-2009《道路交通标线质量要求和检测方法》要求 6.未尽事宜满足设计及现行技术、质量验收规范要求 | D10: m2 | E10: 959.75 | F10: 40 | G10: 38390
A11: 8 | B11: 虚线 | C11: 1.名称：虚线 2.涂料品种：热熔型反光涂料，满足设计和施工验收要求 3.线型、设置宽度：满足设计和施工验收要求 4.涂料厚度：详设计 5.玻璃珠、涂料：热熔型涂料必须符合GB/T16311-2009《道路交通标线质量要求和检测方法》要求 6.未尽事宜满足设计及现行技术、质量验收规范要求 | D11: m2 | E11: 152.4 | F11: 35 | G11: 5334
A12: 9 | B12: 防撞筒 | C12: 1.材料品种 ：防撞筒 2.规格、型号：H=11000m、直径850mm，同外贴钻石级反光膜、填充特细砂或废旧轮胎增重 3.未尽事宜满足设计及现行技术、质量验收规范要求 | D12: 个 | E12: 3 | F12: 120 | G12: 360
A13: 10 | B13: 水泥隔离栏杆 | C13: 1.混凝土强度等级 ：C30 2.立柱H型钢(194×150×6×9)、横杆φ114×4.5×4000、φ89×4.5×4000，预埋件地脚螺栓及其它构件详设计施工图 3.油漆：二级反光漆 杆涂装采用中国建筑色卡国家标准(GB/T18922) 1341号白色与1212号蓝色进行相间刷涂 4.设置黑黄相间立面贴或轮廓标,轮廓标间距4米/个 5.钢筋连接及安装方式：投标人自行考虑 6.混凝土运输及浇筑方式：投标人自行考虑，模板不再单独计取费用，由投标人自行考虑在投标报价中 7.具体做法详见：水泥隔离栏杆大样图 8.未尽事宜满足设计及现行技术、质量验收规范要求 | D13: m | E13: 204 | F13: 330 | G13: 67320
A14: 11 | B14: 铸铁防撞柱 | C14: 1.材料品种 ：防撞柱 2.规格、型号：Q235B、H=1200mm直径、140mm，外贴二级反光膜 3.未尽事宜满足设计及现行技术、质量验收规范要求 | D14: 个 | E14: 20 | F14: 300 | G14: 6000
A15: 12 | B15: 氟碳漆 | C15: 1．材料品种： 氟碳漆 2．部位：隔离墩、路沿石 3.未尽事宜满足设计及现行技术、质量验收规范要求 | D15: m2 | E15: 328 | F15: 60 | G15: 19680
A16: 13 | B16: 标杆 Φ89×4.5×2500mm | C16: 1.类型 ：标杆 2.材质：Q235 热浸镀锌钢管 3.规格尺寸 ：Φ89×4.5×2500mm 4.基础：900×900×900mm，C25混凝土 5.钢筋连接及安装方式：投标人自行考虑 6.混凝土运输及浇筑方式：浇筑方式投标人自行考虑，模板不再单独计取费用，由投标人自行考虑在投标报价中 7.所有钢构件均应进行热浸镀锌处理,抱箍、紧固件等小型构件的镀锌量为350g/m , 其它钢构件的镀锌量为600g/m 8.未尽事宜满足设计及现行技术、质量验收规范要求 | D16: 根 | E16: 2 | F16: 1000 | G16: 2000
A17: 14 | B17: 标杆 Φ89×4.5×3500mm | C17: 1.类型 ：标杆 2.材质：Q235 热浸镀锌钢管 3.规格尺寸 ：Φ89×4.5×5000mm 4.基础：900×900×900mm，C25混凝土 5.钢筋连接及安装方式：投标人自行考虑 6.混凝土运输及浇筑方式：浇筑方式投标人自行考虑，模板不再单独计取费用，由投标人自行考虑在投标报价中 7.所有钢构件均应进行热浸镀锌处理,抱箍、紧固件等小型构件的镀锌量为350g/m , 其它钢构件的镀锌量为600g/m 8.未尽事宜满足设计及现行技术、质量验收规范要求 | D17: 根 | E17: 1 | F17: 1100 | G17: 1100
A18: 15 | B18: 标杆 Φ89×4.5×5000mm | C18: 1.类型 ：标杆 2.材质：Q235 热浸镀锌钢管 3.规格尺寸 ：Φ89×4.5×5000mm 4.基础：900×900×900mm，C25混凝土 5.钢筋连接及安装方式：投标人自行考虑 6.混凝土运输及浇筑方式：浇筑方式投标人自行考虑，模板不再单独计取费用，由投标人自行考虑在投标报价中 7.所有钢构件均应进行热浸镀锌处理,抱箍、紧固件等小型构件的镀锌量为350g/m , 其它钢构件的镀锌量为600g/m 8.未尽事宜满足设计及现行技术、质量验收规范要求 | D18: 根 | E18: 2 | F18: 1200 | G18: 2400
A19: 16 | B19: 标杆 Φ165×8×7000mm | C19: 1.类型 ：标杆 2.材质：Q235 热浸镀锌钢管 3.规格尺寸 ：标杆 Φ165×8×7000mm 4.基础：1200×1000×1500mm，C25混凝土 5.钢筋连接及安装方式：投标人自行考虑 6.混凝土运输及浇筑方式：浇筑方式投标人自行考虑，模板不再单独计取费用，由投标人自行考虑在投标报价中 7.所有钢构件均应进行热浸镀锌处理,抱箍、紧固件等小型构件的镀锌量为350g/m , 其它钢构件的镀锌量为600g/m 8.未尽事宜满足设计及现行技术、质量验收规范要求 | D19: 根 | E19: 3 | F19: 5000 | G19: 15000
A20: 17 | B20: 标杆 2F悬臂式273×10×7900mm | C20: 1.类型 ：标杆 2.材质：Q235 热浸镀锌钢管 3.规格尺寸 ：立柱φ273×10×7900mm、横管φ168×10×5313mm、φ168×10×574mm 4.基础：1800×1600×2200mm，C25混凝土 5.钢筋连接及安装方式：投标人自行考虑 6.混凝土运输及浇筑方式：浇筑方式投标人自行考虑，模板不再单独计取费用，由投标人自行考虑在投标报价中 7.所有钢构件均应进行热浸镀锌处理,抱箍、紧固件等小型构件的镀锌量为350g/m , 其它钢构件的镀锌量为600g/m 8.未尽事宜满足设计及现行技术、质量验收规范要求 | D20: 根 | E20: 5 | F20: 15000 | G20: 75000
A21: 18 | B21: 标志板 2400×4800mm | C21: 1.类型 ：铝板 2.材质、规格尺寸： 3mm厚、2400×4800mm 3.板面反光膜等级：V类反光膜 4.未尽事宜满足设计及现行技术、质量验收规范要求 | D21: 块 | E21: 4 | F21: 6000 | G21: 24000
A22: 19 | B22: 标志板 4800×3500mm | C22: 1.类型 ：铝板 2.材质、规格尺寸： 3mm厚、 4800×3500mm 3.板面反光膜等级：V类反光膜 4.未尽事宜满足设计及现行技术、质量验收规范要求 | D22: 块 | E22: 1 | F22: 10000 | G22: 10000
A23: 20 | B23: 标志板 1500×2500mm | C23: 1.类型 ：铝板 2.材质、规格尺寸： 3mm厚、1500×2500mm 3.板面反光膜等级：V类反光膜 4.未尽事宜满足设计及现行技术、质量验收规范要求 | D23: 块 | E23: 2 | F23: 3000 | G23: 6000
A24: 21 | B24: 标志板 1000×1500mm | C24: 1.类型 ：铝板 2.材质、规格尺寸： 3mm厚、1000×1500mm 3.板面反光膜等级：V类反光膜 4.未尽事宜满足设计及现行技术、质量验收规范要求 | D24: 块 | E24: 2 | F24: 1200 | G24: 2400
A25: 22 | B25: 标志板 500×1500mm | C25: 1.类型 ：铝板 2.材质、规格尺寸： 3mm厚、500×1500mm 3.板面反光膜等级：V类反光膜 4.未尽事宜满足设计及现行技术、质量验收规范要求 | D25: 块 | E25: 3 | F25: 600 | G25: 1800
A26: 23 | B26: 标志板 Φ800mm | C26: 1.类型 ：铝板 2.材质、规格尺寸： 3mm厚、Φ800mm 3.板面反光膜等级：V类反光膜 4.未尽事宜满足设计及现行技术、质量验收规范要求 | D26: 块 | E26: 2 | F26: 500 | G26: 1000
A27: 24 | B27: 标志板 Φ1000mm | C27: 1.类型 ：铝板 2.材质、规格尺寸： 3mm厚、Φ1000mm 3.板面反光膜等级：V类反光膜 4.未尽事宜满足设计及现行技术、质量验收规范要求 | D27: 块 | E27: 7 | F27: 800 | G27: 5600
A28: 25 | B28: 标志板 900×900×900mm | C28: 1.类型 ：铝板 2.材质、规格尺寸： 3mm厚、900×900×900mm 3.板面反光膜等级：V类反光膜 4.未尽事宜满足设计及现行技术、质量验收规范要求 | D28: 块 | E28: 1 | F28: 425 | G28: 425
A29: 26 | B29: 太阳能突起路标 | C29: 1.类型 ：突起路标 2.材料品种：太阳能电池板(单晶硅)3V100MA,要可充镍氢电池1.2V/1600MAH,标准光强下,充电一天可连续工作7天,容量不易下降; 闪烁160次/分或常亮,显示颜色为白或黄,2颗超高亮LED灯;双面可选,可视距离:>500米,电池型的3-5年,产品保一年,工作环境-20℃~+70℃,防水及抗压能力IP68,抗压25吨 3.未尽事宜满足设计及现行技术、质量验收规范要求 | D29: 只 | E29: 10 | F29: 30 | G29: 300
A30: 27 | B30: 隧道口 黄黑立面标记 | C30: 1.材料品种 ：反光膜 2.类型 ：黄黑相间的V类大角度反光膜 3.规格尺寸：条纹宽度20cm 4.未尽事宜满足设计及现行技术、质量验收规范要求 | D30: m2 | E30: 27.51 | F30: 300 | G30: 8253
A31: 二 | B31: 拆除工程
A32: 1 | B32: 清除标线 | C32: 1.清除方法：投标人自行考虑 2.未尽事宜满足设计及现行技术、质量验收规范要求 | D32: m2 | E32: 500 | F32: 35 | G32: =E32*F32 -> 17500
A33: 2 | B33: 拆除杆件 | C33: 1.结构形式 ：金属杆 2.规格尺寸：Φ273×10×7900 mm杆件、Φ165×4×8000杆件 3.拆除后堆放到甲方指定位置 4.未尽事宜满足设计及现行技术、质量验收规范要求 | D33: 根 | E33: 2 | F33: 200 | G33: 400
A34: 3 | B34: 标志牌拆除 | C34: 1.规格：4800×2400mm 2.拆除后堆放到甲方指定位置 3.未尽事宜满足设计及现行技术、质量验收规范要求 | D34: 个 | E34: 2 | F34: 200 | G34: 400
A35: 4 | B35: 拆除混凝土结构 | C35: 1.结构形式：钢筋混凝土 2.强度等级：C30 建渣由承包方自行外弃，包含在综合单价中 3.未尽事宜满足设计及现行技术、质量验收规范要求 | D35: m3 | E35: 30 | F35: 150 | G35: 4500
A36: 5 | B36: 机箱拆除 | C36: 1.名称：机箱拆除 2.拆除方式：由投标人自行考虑，包含在投标报价中 3.拆除后堆放到甲方指定位置 4.未尽事宜满足设计及现行技术、质量验收规范要求 | D36: 台 | E36: 1 | F36: 100 | G36: 100
A37: 6 | B37: 控制线拆除 | C37: 1.类型：控制线拆除 2.拆除方式：由投标人自行考虑，包含在投标报价中 3.未尽事宜满足设计及现行技术、质量验收规范要求 | D37: m | E37: 300 | F37: 1 | G37: 300
A38: 7 | B38: 车行信号灯拆除 | C38: 1.类型：车行信号灯拆除 2.拆除方式：由投标人自行考虑，包含在投标报价中 3.拆除后堆放到甲方指定位置 4.未尽事宜满足设计及现行技术、质量验收规范要求 | D38: 套 | E38: 6 | F38: 100 | G38: 600
A39: 8 | B39: 人行信号灯及灯杆拆除 | C39: 1.类型：人行信号灯及灯杆拆除 2.拆除方式：由投标人自行考虑，包含在投标报价中 3.拆除后堆放到甲方指定位置 4.未尽事宜满足设计及现行技术、质量验收规范要求 | D39: 套 | E39: 8 | F39: 150 | G39: 1200
A40: 9 | B40: 路口监控拆除 | C40: 1.名称：路口监控拆除 2.包含：球机、165*4*8000杆件、165*4*800杆件基础（100*100*100）拆除 3.拆除方式：由投标人自行考虑，包含在投标报价中 4.拆除后堆放到甲方指定位置 5.未尽事宜满足设计及现行技术、质量验收规范要求 | D40: 台 | E40: 1 | F40: 600 | G40: 600
A41: 10 | B41: C20混凝土垫层（车行道下） | C41: 1.材料品种、规格：现浇混凝土C20 2.厚度：综合 3.混凝土运输及浇筑方式：投标人自行考虑 4.未尽事宜满足设计及现行技术、质量验收规范要求 | D41: m3 | E41: 15 | F41: 500 | G41: 7500
A42: 11 | B42: 管道包封 C30混凝土 | C42: 1.名称：预埋电缆保护管砼包封 2.砼：现浇凝土C30 3.包封形式及部位：电缆埋管包封 4.混凝土运输及浇筑方式：投标人自行考虑 5.未尽事宜满足设计及现行技术、质量验收规范要求 | D42: m3 | E42: 20 | F42: 530 | G42: 10600
A43: 三 | B43: 信号设施设备
A44: 1 | B44: 交通信号机 | C44: 1.类型：交通信号机 2.规格型号：新一代基于边缘计算技术的物联型道路交通信号控制机，整机采用工控模组化设计；CPU为32位工业级高频率ARM处理器,低功耗、高性能、高可靠性；系统采用嵌入式实时多任务操作系统，安全、稳定。 1.功能参数 (1) 集中协调式，4U标准机架堆叠式设计； (2) 每一输出板卡可控制4路独立灯组输出，整机可选择4路*（1-8）组输出；每一信号控制相位可任意设置为机动车、非机动车、行人相位，具备扩展到最大32组独立灯控的能力； (3) 支持虚拟检测器功能，可设置虚拟检测器，并可通过网络远程对虚拟检测器输出状态进行置位； (4) 支持至少250路前端虚拟检测器进行逻辑运算优化控制；信号控制机可将物理检测器、时刻、事件（时间、流量、占有率、第三方网络等）等多种参数进行逻辑运算；具有基于多参数虚拟检测逻辑运算的自主方案混合调用（多时段定周期、感应、自适应、公交优先）；可模拟输入现场指挥要素与逻辑推理过程，实现绿信时长、周期与相位差优化控制； (5) 具有丰富的相位控制属性定义，完成相位前伸、后延、插入、弹性控制，提高绿信效率； (6) 支持实时车辆存在性或密度检测，用于感应控制或自适应优化控制； (7) 支持HiPLC技术高效互联路口前端设备，连接设备包括信号灯具、倒计时、待行LED屏等（华为inside），完成数据通讯； (8) 支持HiPLC技术实现前端设备工况、故障等信息主动上报功能，无需铺设专用通讯线缆，降低用户维护成本，实现智能运维； (9) 支持定制图形化路口警卫任务手控面板、无线手动控制面板及行人过街按钮； (10) 具备“节假日”、“星期”和“普通”三种模式共48个时段，支持多时段定周控制、感应控制、潮汐车道控制、行人过街请求控制、自适应控制、自适应协调控制等方案，以及黄闪、全红、关灯等多种控制模式，方案总数可达到255个； (11) 支持感应、自适应控制下的倒计时控制：支持无通信模式、RS485通信等模式控制倒计时器；支持无通信模式提前一个周期和立即关闭倒计时，避免倒计时显示混乱，同时信号灯无任何闪烁现象； (12) 支持与视频检测系统无缝对接，实现视频交通检测下的信号控制； (13) 支持连接视频电子警察虚拟线圈存在型检测； (14) 支持公交优先、出口拥堵控制、事件检测控制、多车道汇入自适应控制等多种场景； (15) 支持至少64路检测接入（不含检测卡），支持线圈、地磁、视频、微波等检测方式； (16) 交通信息采集包括周期流量、饱和度等统计方式，本地记录并上传，具备通信中断后保存7天以上的流量数据能力； (17) 具备RS-232/485、RJ45、USB、WIFI通讯接口，支持中心客户端远程配置，以及使用手持终端及平板电脑APP、移动PC对信号机现场配置、调试； (18) 具有独立黄闪控制、故障保护功能； (19) 支持绿冲突、红灯全灭、红绿同亮、过流、检测器、通信等故障检测及保护功能；支持各灯组零线电流检测，实现线缆漏电监控；支持主备电源自动切换。 (20) 具有工业级可视化触控终端接口，连接后可直接显示/查看/修改信号机参数； 2.电气性能 (1) 采用工控插件模块化设计，控制状态（LED指示）信息丰富，易于安装、维护； (2) 电源额定电压：AC 176V~264V，50Hz±2Hz，支持备用电源接入，支持主备电源自动切换； (3) 每路输出最大驱动功率：不低于800W； (4) 整机标配功耗：<50W（不含灯具消耗功率）； (5) 信号机绝缘电阻：> 50MΩ； (6) 电源输入端及灯控信号输出端具备防雷保护功能，具备过流、过压、浪涌和短路保护设备； (7) 具备高压防误接及输入电压监测功能； (8) 易触及部件之间施加1500V、50Hz 电压，不出现击穿现象； (9) 在静电放电、快速瞬变脉冲群 、浪涌、电压短时中断等电磁骚扰环境下不出现电气故障； 3.机箱材质 (1) 具备防破坏、防振、防电磁干扰、防尘、防水、防潮、防高温、防锈蚀、防雷击功能； (2) 带有电源插座和空气开关，机箱座的固定机箱螺丝采用不锈钢螺丝； (3) 机箱表面采用喷塑工艺处理，锁具、门轴坚实牢固，使用寿命在十年以上； (4) 304不锈钢材质双开门机箱,机箱门开启角度大于120°，板材厚度不小于2.0毫米，并具有防鼠功能； (5) 避雷等级为2级； 4.工作环境 (1) 工作温度：-40～＋70℃； (2) 工作相对湿度： 5%～95%（不结露）； (3) 正常工作时达到IP65防雨淋，信号控制器机柜内部无渗水或积水现象。 通过公安部下属权威检测机构检测，符合GB25280-2016《道路交通信号控制机》标准要求。 3.机箱、机箱基础安装详机箱落地设计图 4.未尽事宜满足设计及现行技术、质量验收规范要求 | D44: 台 | E44: 1 | F44: 31000 | G44: =E44*F44 -> 31000
A47: 2 | B47: 智能门禁系统 | C47: 1.名称：智能门禁系统 2.规格型号：智能门禁锁具，支持开门报警、远程开锁、刷卡开锁，支持无市电状态开启关闭门锁，支持机械钥匙，支持机柜开门拍照 3.未尽事宜满足设计及现行技术、质量验收规范要求 | D47: 台 | E47: 1 | F47: 3000 | G47: =E47*F47 -> 3000
A48: 3 | B48: 环境监测模块 | C48: 1.名称：环境监测模块 2.规格型号：功能参数： （1）支持机箱温湿度监测，实时检测机柜内温湿度信息，支持高温机箱风扇自动开启； （2）支持机箱水位监测，支持异常水位报警； （3）支持2路报警输出接口。 工作环境： （1）工作温度：-20～＋70℃； （2）工作相对湿度： 5%～95%（不结露）； 3.未尽事宜满足设计及现行技术、质量验收规范要求 | D48: 个 | E48: 1 | F48: 5000 | G48: =E48*F48 -> 5000
A49: 4 | B49: 信控边缘网关面板 | C49: 1.名称：信控边缘网关面板 2.规格型号：1、功能参数： （1）网关由底板、核心板、PLC集中器模块三部分组成； （2）核心板CPU采用SoC芯片，芯片内嵌ARM双核cortex A9、ZSP处理器，频率700MHz,内存512MB，FLASH 1GB； （3）支持系统内温度检测； （4）支持掉电检测；支持插紧检测； （5）支持电源、运行、业务指示灯； （6）PLC集中器头端模块CPU采用ARM926EJ-S,工作频率2~12MHz，支持自动低功耗控制技术，支持4级QoS，支持数据分段、重组、重传；支持数据加解密。 （7）采用边缘计算，支持毫秒级的数据实时分析、事件实时响应； （8）支持私有的安全域：数据、节点、网络安全； （9）支持边缘智能分析处理，充分利用电力线传输数据，实现路口级数据互通共享，实现路口全面数字化、智能化； （10）支持HiPLC高效物联配套倒计时、灯具、待行屏、过街按钮、情报板等交通设施（需设备具备物联网功能）。 2、电气参数： （1）支持USB、COM口、RS485、RJ45等接口； （2）工作电源：DC 12V±1V，功耗＜8W 3、机械参数：铝型材，表喷黑色装饰漆，4U板卡式安装 4、工作环境： （1）工作温度：-40℃~70℃； （2）散热方式：自然散热； （3）工作湿度：5%~95%非凝露 3.未尽事宜满足设计及现行技术、质量验收规范要求 | D49: 台 | E49: 1 | F49: 5000 | G49: =E49*F49 -> 5000
A50: 5 | B50: 信控物联模块（灯具） | C50: 1.名称：信控物联模块（灯具） 2.规格型号：1、功能参数： （1）信控物联套件尾端物联模块， CPU采用ARM926EJ-S,工作频率2~12MHz，支持子频段使用； （2）支持自动低功耗控制技术，支持4级QoS； （3）支持业务指示灯； （4）支持数据分段、重组、重传；支持数据加解密； （5）支持与信控边缘网关HiPLC通讯，实现尾端设备数字化； （6）匹配支持灯具物联网控制，支持尾端设备故障、漏电、线路信息上报等； 2、电气参数： （1）支持UART接口； （2）工作电源：DC 12V±1V，功耗＜8W 3、工作环境： （1）工作温度：-40℃~85℃； （2）散热方式：自然散热； （3）工作湿度：5%~95%非凝露 3.未尽事宜满足设计及现行技术、质量验收规范要求 | D50: 个 | E50: 20 | F50: 1300 | G50: =E50*F50 -> 26000
A51: 6 | B51: 信控物联模块（倒计时器） | C51: 1.名称：信控物联模块（倒计时器） 2.规格型号：1、功能参数： （1）信控物联套件尾端物联模块， CPU采用ARM926EJ-S,工作频率2~12MHz，支持子频段使用； （2）支持自动低功耗控制技术，支持4级QoS； （3）支持业务指示灯； （4）支持数据分段、重组、重传；支持数据加解密； （5）支持与信控边缘网关HiPLC通讯，实现尾端设备数字化； （6）匹配支持倒计时物联网控制，支持尾端设备故障、漏电、线路信息上报等； 2、电气参数： （1）支持UART接口； （2）工作电源：DC 12V±1V，功耗＜8W 3、工作环境： （1）工作温度：-40℃~85℃； （2）散热方式：自然散热； （3）工作湿度：5%~95%非凝露 3.未尽事宜满足设计及现行技术、质量验收规范要求 | D51: 个 | E51: 20 | F51: 1300 | G51: =E51*F51 -> 26000
A52: 7 | B52: 工业级可视化触控终端 | C52: 1.名称：工业级可视化触控终端 2.规格型号： 1、功能参数：支持信号机状态查询，支持信号机全部控制数据修改，支持路口数据保存，支持信号机手持接口，支持横屏、竖屏多种模式，彩色图形TFT，分辨率800*480，电容式多点触摸控制，自动背光控制，自动关机 2、电气参数：工作电源：5VDC/2A，雷击浪涌冲击防护(电源)：5000A(8/20μs) 3、机械参数：表面硬度莫式7级； 4、材质：压铸铝外壳，表喷黑色装饰漆，19英寸机架式安装，维护方便 5、工作环境：工作温度：-20～＋70℃，存储温度：-40～＋85℃，工作相对湿度： 5%～95%（不结露），防护等级：IP54 3.未尽事宜满足设计及现行技术、质量验收规范要求 | D52: 台 | E52: 1 | F52: 6000 | G52: =E52*F52 -> 6000
A53: 8 | B53: 警卫任务（应急处突）专用控制面板 | C53: 1.名称：警卫任务（应急处突）专用控制面板 2.规格型号：1、功能参数： （1）非专业技术人员能够通过现场控制路口信号机的专用控制面板，实现对路口信号灯运行方案的控制，面板为可视化定制产品，与现场路口形状吻合。 （2）能即时（10秒钟以内）实现路口进口任一方向（最多5个进口方向）所有信号灯为绿灯放行状态，其它进口方向以及人行信号灯为红灯状态。 （3）能即时（10秒钟以内）实现路口所有信号灯全红、黄闪（人行信号灯无显示）、关灯等状态。 （4）能即时（10秒钟以内）实现路口运行方案中的阶段保持和转换。阶段保持是指路口信号灯灯色固定在当前阶段不转换，直至有下一步操作为止。 （5）能即时（10秒钟以内）实现上述几种状态的转换。 （6）在通过信号机专用按钮实施控制时，路口所有倒计时器、待行屏等设施处于无显示状态，直至取消专用按钮控制模式 2、电气参数： （1）工作电源：5VDC/2A； （2）雷击浪涌冲击防护(电源)：5000A(8/20μs) 3、材质： （1）外表面为ABS工程塑料，激光雕刻标识； （2）线路板为阻燃线路板； 4、工作环境： （1）工作温度：-20～＋70℃； （2）存储温度：-40～＋85℃ （3）工作相对湿度： 5%～95%（不结露）； 产品通过第三方检测机构检测 3.未尽事宜满足设计及现行技术、质量验收规范要求 | D53: 套 | E53: 1 | F53: 5000 | G53: =E53*F53 -> 5000
A54: 9 | B54: 圆盘机动车信号灯 Φ400mmLED（三灯三色） | C54: 1.类型：圆盘机动车信号灯 2.信号灯规格、型号、组数：Ф400mm三灯三色,PC面罩,进口超高亮LED芯片,开关电源，通过公安部检测，符合GB 14887-2011《道路交通信号灯》并提供有效期内检测报告。支持黄灯闪通，与交巡警总队主城区常规和重要应急处突线路技术要求一致 3.含装配、吊装等 4.包括配套附件等制作安装 5.未尽事宜满足设计及现行技术、质量验收规范要求 | D54: 套 | E54: 4 | F54: 1500 | G54: =E54*F54 -> 6000
A55: 10 | B55: 方向机动车信号灯 Φ400mmLED（三灯三色） | C55: 1.类型：方向机动车信号灯 2.信号灯规格、型号、组数：Ф400mm三灯三色,PC面罩,进口超高亮LED芯片,开关电源，通过公安部检测，符合GB 14887-2016《道路交通信号灯》并提供有效期内检测报告。支持黄灯闪通，与交巡警总队主城区常规和重要应急处突线路技术要求一致 3.含装配、吊装等 4.包括配套附件等制作安装 5.未尽事宜满足设计及现行技术、质量验收规范要求 | D55: 套 | E55: 4 | F55: 1200 | G55: =E55*F55 -> 4800
A56: 11 | B56: 车行倒计时显示器 | C56: 1.类型：车行倒计时显示器 2.信号灯规格、型号、组数： （1）LED显示管管芯采用进口一级管芯，降压多分组并接方式；中心光强(亮度)≥5000CD，功耗<=25瓦，视角不小于30度； （2）点阵式动态显示，32级以上亮度调节，同相位倒计时同步时间不大于0.1秒； （3）独立的红黄绿三色数字显示； （4）无需单独供电，从信号灯取电，控制主板在信号灯灯色切换时能正常工作； （5）支持单相位和双相位计数和显示； （6）支持跟随方式（学习式）、通讯方式（实时型）和自适应控制定程显示（显示时间自动学习）； （7）支持无通信电缆模式下手动关闭和开启倒计时； （8）支持一个信号周期内2次以上红灯和绿灯时间计数和显示； （9）可视距离≥300m 3.含装配、吊装等 4.包括配套附件等制作安装 5.未尽事宜满足设计及现行技术、质量验收规范要求 | D56: 套 | E56: 8 | F56: 1200 | G56: =E56*F56 -> 9600
A57: 12 | B57: 人行信号灯 Φ300mmLED （二灯二色） | C57: 1.类型：人行信号灯 2.信号灯规格、型号、组数：Ф300mm二灯二色+双色倒记时点阵显示,PC面罩,进口超高亮LED芯片，开关电源,无须单独供电，外壳为压铸铝； 通过公安部检测，符合GB 14887-2011《道路交通信号灯》，提供有效期内检测报告； 具有与信号机实现有线通讯的功能，支持接收信号机开/关屏命令； 与交巡警总队主城区常规和重要应急处突线路技术要求一致。 3.含装配、吊装等 4.包括配套附件等制作安装 5.信号灯基础、灯杆安装详人行信号灯灯杆安装图 5.未尽事宜满足设计及现行技术、质量验收规范要求 | D57: 套 | E57: 12 | F57: 1300 | G57: =E57*F57 -> 15600
A58: 13 | B58: 电源防雷器 | C58: 1.名称：电源防雷器 2.规格型号：功能参数： 1、功能参数：系统电源避雷设备 2、电气参数：（1）电气间隙和爬电距离标准 DIN VDE 0110-1，保护等级 IP20，额定电压 UN 230 V AC，电涌保护器额定电压UC 275 V AC/350 V DC，额定频率fN 50 Hz (60 Hz)，接地导线电流IPE ≤ 0,3 mA （2）待机功耗 PC ≤ 125 mVA，最大放电电流Imax（8/20）µs 40 kA，额定放电电流In（8/20）µs 20 kA，雷电测试电流（10/350）µs，峰值limp 3 kA，最大吸收能量（2 ms） 550 J（3）防护等级 Up ≤ 1,35 kV，残压 ≤ 1 kV (5 kA)， ≤ 1,15 kV (10 kA)， ≤ 1,35 kV (In)， ≤ 950 V (3 kA)，响应时间 ≤ 25 ns （3）分支布线所需的最大备用保险丝 125 A (gL)，短路电阻IP，带有最大备用熔断器（有效） 25 kA，容量 3 nF；3材质：（1）外壳材料、电气间隙和外壳材料 PA；（2）阻燃等级，符合UL 94 V0，黑色；5工作环境：（1）工作环境：-20℃～＋70 3.未尽事宜满足设计及现行技术、质量验收规范要求 | D58: 个 | E58: 9 | F58: 240 | G58: =E58*F58 -> 2160
A59: 14 | B59: 雷达视频流程车检器 | C59: 1.名称：雷达视频流程车检器 2.规格、型号：采用一体化设计，由智能摄像机及多目标跟踪雷达构成； 雷达频率：77GHz； 视频传感器类型：1/1.8"； 检测宽度：支持双向多车道多目标轨迹跟踪检测，实时在线仿真，横向≥4个车道；最大目标跟踪：≥128个； 雷达参数设置：包括检测速度、原点坐标、车道数、车道宽度、方向、架设高度、距离修正参数、角度修正参数； 视频图像分辨率：≥2712×1536@25fps； 视频编码格式：H.264、H.265； 视频接入协议：GB/T28181； 通信接口：1个10M/100M/1000M 自适应网口，1个RS485接口； 网络协议：TCP/IP,HTTP,HTTPS,FTP,DNS,RTP,RTSP,RTCP,NTP,IPv6, DHCP,PPPoE, SMTP,SNMP,IGMP,802.1x等网络协议； 联动功能：应具备与交通信号控制机及信号系统联动，实现自适应信号控制； 交通异常提示：当检测到车流中异常低速、停车时输出报警信息，报警信息分为拥堵、缓行、逆行、变道、跟车过近、异常停车等； 交通智能识别：内置车流量、车道平均速度、车头时距、车头间距、车道时间占有率、车道空间占有率、车辆类型、车辆排队长度等智能算法； 位置速度信息叠加：支持雷达目标位置和速度信息与视频图像叠加； 交通状态检测：支持综合时间占有率、车流量及排队长度等参数，识别交通状态，包括：畅通、缓慢及拥堵； 目标空间数据输出：支持实时显示目标位置坐标（X、Y轴坐标，以车道中心为原点），车道、速度； 交通热度图：支持时段车辆信息的热度图功能，并支持热度图导出； 电源：AC 220V±40%； 工作温度：－20℃～70℃。 3.未尽事宜满足设计及现行技术、质量验收规范要求 | D59: 套 | E59: 6 | F59: 7000 | G59: =E59*F59 -> 42000
A61: 15 | B61: 交通流量协议转换器 | C61: 1.名称：交通流量协议转换器 2.规格、型号：支持8路网络摄像机输入；32路开关量信号输出；2个RS232串口，1路参数配置端口；1个RS485接口；1个RJ45 10M/100M自适应以太网口；实时流量转换准确率不小于99%；车辆信息输入与实际开关量信号输出之间的最大延迟不大于200ms，平均延时小于100ms； 3.未尽事宜满足设计及现行技术、质量验收规范要求 | D61: 套 | E61: 1 | F61: 1500 | G61: =E61*F61 -> 1500
A62: 16 | B62: 终端盒 | C62: 1.名称：终端盒 2.规格型号：内置8个10M/100M自适应以太网口；增配交换机最大可扩展至12路高清视频和12路高清图片同时接入；标配1个4T硬盘；标配GPS/北斗功能； 3.未尽事宜满足设计及现行技术、质量验收规范要求 | D62: 个 | E62: 3 | F62: 130 | G62: 390
A63: 17 | B63: 摄像机支架 壁式 | C63: 1.名称：摄像机支架 2.未尽事宜满足设计及现行技术、质量验收规范要求 | D63: 个 | E63: 6 | F63: 260 | G63: 1560
A64: 18 | B64: 摄像机电源 | C64: 1.名称：摄像机电源 2.规格型号：AC 220V转DC 12V/2A 3.未尽事宜满足设计及现行技术、质量验收规范要求 | D64: 个 | E64: 6 | F64: 100 | G64: 600
A65: 19 | B65: 高清硬盘录像机 | C65: 1.名称：高清硬盘录像机 2.规格型号：支持8路高清1080P视频输入，配2*6T硬盘存储30天（硬盘另列清单） 3.未尽事宜满足设计及现行技术、质量验收规范要求 | D65: 台 | E65: 1 | F65: 3000 | G65: 3000
A66: 20 | B66: 硬盘 6T | C66: 1.名称：硬盘 6T 2.规格型号：监控级专用硬盘，6T/块，合理工作温度：0～＋60℃；，存储温度：-40～＋85℃，保证摄取的录像资料保存30天以上 3.未尽事宜满足设计及现行技术、质量验收规范要求 | D66: 块 | E66: 1 | F66: 1500 | G66: 1500
A67: 21 | B67: 工业以太网交换机 | C67: 1.名称：工业以太网交换机 2.规格型号：工业级，端口类型100/1000BaseT(X)，端口数量8 ，网络标准IEEE 802.3,IEEE 802.3u,IEEE 802.3x，电压12-48VDC，工作温度-40℃-75℃，工作湿度5%-95%(无凝露) 3.未尽事宜满足设计及现行技术、质量验收规范要求 | D67: 台 | E67: 1 | F67: 1000 | G67: 1000
A68: 22 | B68: 6m悬臂式车行灯杆 | C68: 1.类型：悬臂式车行灯杆 2.材质：八棱锥型变径立杆，表面热锓锌处理。立杆外径、横杆外径及壁厚详见对应长度杆件大样图，可抗8级台风 3.立杆8m，横杆6m 4.含装配、吊装等 5.包括配套附件等制作安装 6.基础、车行杆做法详悬臂6-8米交通信号灯安装结构图 7.200mm厚片石垫层表层灌砂，100mm厚C10细石混凝土垫层、C25钢筋混凝土基础 8.混凝土运输及浇筑方式：投标人自行考虑 9.钢筋连接方式、安装方式：投标人自行考虑 9.未尽事宜满足设计及现行技术、质量验收规范要求 | D68: 根 | E68: 2 | F68: 15000 | G68: 30000
A69: 23 | B69: 8m悬臂式车行灯杆 | C69: 1.类型：悬臂式车行灯杆 2.材质：八棱锥型变径立杆，表面热锓锌处理。立杆外径、横杆外径及壁厚详见对应长度杆件大样图，可抗8级台风 3.立杆8m，横杆8m 4.含装配、吊装等 5.包括配套附件等制作安装 6.基础、车行杆做法详悬臂6-8米交通信号灯安装结构图 7.200mm厚片石垫层表层灌砂，100mm厚C10细石混凝土垫层、C25钢筋混凝土基础 8.混凝土运输及浇筑方式：投标人自行考虑 9.钢筋连接方式、安装方式：投标人自行考虑 9.未尽事宜满足设计及现行技术、质量验收规范要求 | D69: 根 | E69: 2 | F69: 17000 | G69: 34000
A70: 24 | B70: 悬臂式遮水帽 | C70: 1.类型：悬臂式遮水帽 2.材质、规格尺寸：Ф290*300mm封盖部分Ф230/290半球，国标301不锈钢材质，开缺口，成型后打磨至表面平整、光滑，黄色烤漆 3.未尽事宜满足设计及现行技术、质量验收规范要求 | D70: 套 | E70: 4 | F70: 100 | G70: 400
A71: 25 | B71: 电源线 RVV3×6mm2 | C71: 1.类型：电源线 2.材质：铜芯 3.规格、型号：RVV3×6mm²，导体材质：无氧铜，绝缘材料：聚氯乙烯，执行标准：GB/T 5023.5-2008 4.未尽事宜满足设计及现行技术、质量验收规范要求 | D71: m | E71: 300 | F71: 24 | G71: 7200
A72: 26 | B72: 控制线 RVV4×1.5mm2 | C72: 1.类型：控制线 2.材质：铜芯 3.铜芯聚氯乙烯绝缘聚氯乙烯护套软线 额定电压：300/500V，规格：：RVV4×1.5mm²，导体材质：无氧铜，绝缘材料：聚氯乙烯，执行标准：GB/T 5023.5-2008额定电压450/750V及以下聚氯乙烯绝缘电缆 4.未尽事宜满足设计及现行技术、质量验收规范要求 | D72: m | E72: 2300 | F72: 10 | G72: 23000
A73: 27 | B73: 电源线 RVV3×2.5mm2 | C73: 1.类型：电源线 2.材质：铜芯 3.铜芯聚氯乙烯绝缘聚氯乙烯护套软线 额定电压：300/500V，规格：：RVV3×2.5mm²，导体材质：无氧铜，绝缘材料：聚氯乙烯，执行标准：GB/T 5023.5-2008额定电压450/750V及以下聚氯乙烯绝缘电缆 4.未尽事宜满足设计及现行技术、质量验收规范要求 | D73: m | E73: 200 | F73: 13 | G73: 2600
A74: 28 | B74: 信号线 RVVSP2×1.0mm2 | C74: 1.类型：信号线 2.材质：铜芯 3.铜芯聚氯乙烯绝缘聚氯乙烯护套绞型屏蔽软线额定电压：300/500V，规格：RVVSP2×1.0mm²，导体材质：无氧铜，绝缘材料：聚氯乙烯，执行标准：GB/T 5023.5-2008额定电压450/750V及以下聚氯乙烯绝缘电缆 4.未尽事宜满足设计及现行技术、质量验收规范要求 | D74: m | E74: 1000 | F74: 5 | G74: 5000
A75: 29 | B75: 超五类双屏蔽网线 | C75: 1.名称：超五类双屏蔽网线 2.摄像机传输图片使用的是RJ45网络接口，需布设超五类双屏蔽8芯纯铜室外专用网线 3.敷设方式：综合 4.未尽事宜满足设计及现行技术、质量验收规范要求 | D75: m | E75: 200 | F75: 4 | G75: 800
A76: 30 | B76: 智能电表 | C76: 1.名称：智能电表 2.型号、规格：电表准确度等级：1.0级，符合GB/T17215-1998、IEC1036-1996；电流规格5(20)A，额定电压：AC220V，额定频率50Hz 3.未尽事宜满足设计及现行技术、质量验收规范要求 | D76: 个 | E76: 1 | F76: 260 | G76: 260
A77: 31 | B77: 接地线 RVV1×10.0mm2 | C77: 1.类型：电源线 2.材质：铜芯 3.额定电压：300/500V，规格RVV1×10.0mm²，导体材质：无氧铜，绝缘材料：聚氯乙烯，执行标准：GB/T 5023.5-2008 4.未尽事宜满足设计及现行技术、质量验收规范要求 | D77: m | E77: 60 | F77: 13 | G77: 780
A78: 32 | B78: 接地极 L50×5×2500mm | C78: 1.名称：接地极 2.类型：接地极 3.材质：镀锌角钢 4.规格：L50×5×2500mm 5.土质：综合 6.基础接地形式：详设计 7.未尽事宜满足设计及现行技术、质量验收规范要求 | D78: 根 | E78: 20 | F78: 45 | G78: 900
A79: 33 | B79: 热镀锌接地扁钢 40×4mm | C79: 1.名称：接地母线 2.材质：镀锌扁钢 3.规格：-40×4mm 4.未尽事宜满足设计及现行技术、质量验收规范要求 | D79: m | E79: 150 | F79: 13 | G79: 1950
A80: 34 | B80: 手孔井 | C80: 1.手孔井 2.做法详信号管线手孔大样图，模板不再单独计取费用，包含在综合单价中 3.井盖与井座一体化防盗连接；定制“公安交通”字样 4.未尽事宜满足设计及现行技术、质量验收规范要求 | D80: 座 | E80: 26 | F80: 650 | G80: 16900
A81: 35 | B81: 镀锌钢管 φ114mm | C81: 1.材料品种：镀锌钢管 2.规格：Ф114 3.未尽事宜满足设计及现行技术、质量验收规范要求 | D81: m | E81: 500 | F81: 70 | G81: 35000
A82: 36 | B82: HDPE管 φ100mm | C82: 1.材料品种：HDPE管 2.规格：Ф100 3.未尽事宜满足设计及现行技术、质量验收规范要求 | D82: m | E82: 1000 | F82: 25 | G82: 25000
A83: 37 | B83: 报修电话标牌 | C83: 1.类型：报修电话标牌 2.材质、规格尺寸：800*1200*2mm，超强级反光膜，报修电话标牌 3.未尽事宜满足设计及现行技术、质量验收规范要求 | D83: 块 | E83: 1 | F83: 350 | G83: 350
A84: 38 | B84: 交通智能系统调试 | C84: 1.系统类别：交通智能系统调试 2.未尽事宜满足设计及现行技术、质量验收规范要求 | D84: 系统 | E84: 1 | F84: 2000 | G84: 2000
A85: 39 | B85: 接地装置调试 | C85: 1.名称：接地装置调试 2.类别：接地网 3.未尽事宜满足设计及现行技术、质量验收规范要求 | D85: 系统 | E85: 1 | F85: 650 | G85: 650
A86: 四 | B86: 电子警察及监控设施设备
A87: 1 | B87: 电子警察抓拍单元（900万） | C87: 1.名称：电子警察抓拍单元（900万） 2.规格型号： （1）采用一体化设计，含智能摄像机（内置GPU分析芯片）、综合控制模块，高清镜头，防雷器、温控护罩、电源适配器等； （2）有效像素：900万，1英寸彩色GMOS图像传感器； （3）覆盖范围：3车道； （4）视频帧率：1～25fps可调； （5）镜头接口：C/CS镜头，自动光圈； （6）视频编码格式：H.265、H.264； （7）图片编码格式：JPEG （8）最低照度：彩色：0.0002 Lx； （9）通信接口：2个100/1000M自适应RJ45接口，支持RS485接口通信； (10)智能功能：内置车牌识别（含新能源）、车型识别、车身颜色、车辆子品牌识别、压线、逆行、变道、超速等多种违章检测功能，同时支持摩托车检测抓拍； (11)补光灯：具备补光灯控制功能，并可检测补光灯是否起效； (12)抓拍方式：支持连续抓拍模式，其中号牌和车辆特征、车身颜色、识别时间应≤300ms，支持混合抓拍模式，可同时对行人、非机动车、机动车进行检测、跟踪及抓拍； (13)图片压缩；具备图片ROI压缩,大小参数可设置； (14)GPS定位：具备GPS定位功能； (15)本地存储：具备本地存储（≥16GB)、自动加密、自动覆盖、自动上传、断网续传； (16)视频接入标准：GB/T 28181； (17)工作温度：-40℃-70℃； (18)工作湿度：5%~95%@40℃（无凝结）； (19）符合GA/T497-2016, GA/T832-2014,GB/T28181 -2016技术规范要求。 3.DSP抓拍处理模块：集成于相机中，TI CPU（ARM+DSP），视频检测、摄像、抓拍、车牌识别等功能 4.含装配、吊装等 5.包括配套附件等制作安装 6.未尽事宜满足设计及现行技术、质量验收规范要求 | D87: 台 | E87: 4 | F87: 9000 | G87: =E87*F87 -> 36000
A89: 2 | B89: 车辆人脸卡口抓拍单元(900W) | C89: 1.名称：车辆人脸卡口抓拍单元(900W) 2.规格型号： （1）采用一体化设计，含智能摄像机（内置GPU分析芯片）、综合控制模块，高清镜头，防雷器、温控护罩、电源适配器等； （2）有效像素：900万， （3）传感器：内置两个图像传感器，可分别输出黑白机彩色图像，并支持视频图像机抓拍图片融合输出； （4）覆盖范围：2车道； （5）视频帧率：1～25fps可调； （6）镜头：采用一体化镜头设计； （7）视频编码格式：H.265、H.264； （8）图片编码格式：JPEG （9）最低照度：彩色：0.0002 Lx； （10）通信接口：2个100/1000M自适应RJ45接口，支持RS485接口通信； （11）智能功能：内置车牌识别（含新能源）、车型识别、车身颜色、车辆子品牌识别、压线、逆行、变道、超速等多种违章检测功能，同时支持摩托车检测抓拍； （12）补光灯：补光控制：爆闪灯支持白天、夜晚两种模式，支持配置时间自动切换日夜模式，白天为白光，夜晚为红外； （13）抓拍方式：支持连续抓拍模式，其中号牌和车辆特征、车身颜色、识别时间应≤300ms，支持混合抓拍模式，可同时对行人、非机动车、机动车进行检测、跟踪及抓拍； （14)人像模式：支持专业级得前排驾驶人员人脸捕获及抓拍，可实现人车关联抓拍； （15）车窗加强：支持车辆识别后，对车窗区域图像通透性进行提升； （16）图片增强：支持抓拍图片提亮，暗处提亮，亮处压制； （17）像素分量：可显示设定区域内各像素点的RGB分量值； （18）视频接入标准：GB/T 28181； （19）工作温度：-40℃-70℃； （20）工作湿度：5%~95%@40℃（无凝结）； （21）符合GA/T497-2016,GA/T832-2014技术规范要求。 3.DSP抓拍处理模块：集成于相机中，TI CPU（ARM+DSP），视频检测、摄像、抓拍、车牌识别等功能 4.含装配、吊装等 5.包括配套附件等制作安装 6.未尽事宜满足设计及现行技术、质量验收规范要求 | D89: 台 | E89: 2 | F89: 11000 | G89: =E89*F89 -> 22000
A91: 3 | B91: 高清镜头 | C91: 1.名称：高清镜头 2.规格型号：百万像素，手动光圈，手动变焦 3.未尽事宜满足设计及现行技术、质量验收规范要求 | D91: 台 | E91: 6 | F91: 800 | G91: =E91*F91 -> 4800
A92: 4 | B92: 摄像机护罩+安装支架 | C92: 1.名称：摄像机护罩+安装支架 2.规格型号：防水，防尘，带加热器和风扇 3.未尽事宜满足设计及现行技术、质量验收规范要求 | D92: 台 | E92: 6 | F92: 450 | G92: 2700
A93: 5 | B93: 高清摄像机电源 | C93: 1.名称：高清摄像机电源 2.功能参数：高清摄像机电源； 电气参数输入：100VAC～240VAC，输出AC24V。 工作环境:（1） 湿度：5%~95%@40℃，无凝结；（2） 工作环境温度：-40℃～+80℃； 3.未尽事宜满足设计及现行技术、质量验收规范要求 | D93: 个 | E93: 10 | F93: 100 | G93: 1000
A94: 6 | B94: 电源防雷器 | C94: 1.名称：电源防雷器 2.规格型号：系统电源避雷设备，电气间隙和爬电距离标准DINVDE0110- 1，保护等级 IP20，额定电压 UN 230 V AC，电涌保护器额定电压UC 275 V AC/350 V DC，额定频率fN 50 Hz (60 Hz)，接地导线电流IPE ≤ 0,3 mA，待机功耗 PC ≤ 125 mVA，最大放电电流Imax（8/20）µs 40 kA，额定放电电流In（8/20）µs 20 kA，雷电测试电流（10/350）µs，峰值limp 3 kA，最大吸收能量（2 ms） 550 J，防护等级 Up ≤ 1,35 kV，残压 ≤ 1 kV (5 kA)， ≤ 1,15 kV (10 kA)， ≤ 1,35 kV (In)， ≤ 950 V (3 kA)，响应时间 ≤ 25 ns ，分支布线所需的最大备用保险丝 125 A (gL)，短路电阻IP，带有最大备用熔断器（有效） 25 kA，容量 3 nF；外壳材料、电气间隙和外壳材料 PA，阻燃等级，符合UL 94 V0，黑色；工作环境：-20℃～＋70℃，工作相对湿度： 5%～95%（不结露） 3.未尽事宜满足设计及现行技术、质量验收规范要求 | D94: 个 | E94: 10 | F94: 220 | G94: 2200
A95: 7 | B95: 网络防雷器 | C95: 1.名称：网络防雷器 2.规格型号：配套高清摄像机使用。网络部分：最大持续工作电压：5V；标称放电电流：3kA；最大通流容量：5kA；响应时间：1ns；传输速率：100Mbps；插入损耗：≤0.5dB；电源部分：工作电压：220V AC；最大持续工作电压：385V AC；标称放电电流：5kA；最大通流容量：10kA 3.未尽事宜满足设计及现行技术、质量验收规范要求 | D95: 个 | E95: 10 | F95: 240 | G95: 2400
A96: 8 | B96: 枪球一体机 | C96: 1.名称：枪球一体机 2.规格型号：枪球一体化设计，兼顾全景与细节；支持双云台，设备具备全景、细节两个通道且都支持远程转动调节位置，灵活布控；细节相机支持25倍光学变倍，16倍数字变倍；400万像素1/1.8英寸CMOS 传感器；支持H.265编码，实现超低码流传输；全景相机内置20米白光灯补光，采用暖色调和柔化处理，有效降低炫目程度；细节相机内置100米红外灯补光，采用倍率与红外灯功率匹配算法，补光效果更均匀；支持绊线入侵、区域入侵、穿越围栏、徘徊、物品遗留、物品搬移、快速移动、停车、人员聚集检测；支持人车分类报警；支持联动跟踪；水平旋转范围检验：全景摄像机水平旋转范围:水平角度0~360º，细节摄像机水平旋转范围:水平角度0~250º（提供公安部有效检测报告复印件加盖原厂鲜章）；垂直旋转范围检验：全景摄像机垂直旋转范围:垂直角度0~30º细节摄像机垂直旋转范围:垂直角度-10~150º（提供公安部有效检测报告复印件加盖原厂鲜章）；支持300个预置位，8条巡航路径，5条巡迹路径；支持1路音频输入和1路音频输出；内置2路报警输入和1路报警输出，支持报警联动功能；支持IP67防护等级，8000V防雷、防浪涌和防突波保护；支持AC24V±25%宽电压输入；支持国密算法 SM1、SM2、SM3、SM4，支持GB35114 A级；支持报警联动白光警戒，声音报警，对目标进行跟踪；喇叭警戒距离可达50m；内置扬声器，支持13条喊话报警； 3.未尽事宜满足设计及现行技术、质量验收规范要求 | D96: 台 | E96: 4 | F96: 7500 | G96: 30000
A97: 9 | B97: 枪球一体机支架 | C97: 1.名称：枪球一体机支架 2.未尽事宜满足设计及现行技术、质量验收规范要求 | D97: 个 | E97: 4 | F97: 150 | G97: 600
A98: 10 | B98: 信号灯检测器 | C98: 1.名称：信号灯检测器 2.规格、型号：交通信号输入接口≥16路；交通灯状态指示≥16路；支持通过配置工具设置红灯检测模式/绿灯检测模式；网络状态监测功能:开启Ping功能时，Ping成功LAN指示灯闪烁，Ping失败或Ping功能未使能LAN指示灯常亮，首次Ping成功/失败可记录日志。时间设置:支持通过配置工具设置NTP 校时或同步PC时间。（提供公安部有效检测报告复印件加盖原厂鲜章）；支持通过小工具进行网络升级/通过CRT软件进行串口升级。接口:RS485接口:1个；网络接口:1个,RJ45 100M 网口；电源接口：DC12V，1A；AC220V输入接口:20个。（提供公安部有效检测报告复印件加盖原厂鲜章）；工作温度：-40℃～+65℃；功耗：<3W；供电方式：DC12V； 3.未尽事宜满足设计及现行技术、质量验收规范要求 | D98: 套 | E98: 1 | F98: 2100 | G98: 2100
A99: 11 | B99: 智能补光灯 | C99: 1.类型：智能补光灯 2.规格、型号：1个灯覆盖1车道，带安装支架或导轨；适用于电子警察抓拍单元的夜间视频检测、车辆抓拍、视频录像补光；采用16颗Cree高性能冷白LED，光源高效、节能环保；平均功耗≤23W；光学模式：频闪，支持环境亮度检测；自动感光功能检查：可根据环境亮度变化自动点亮或熄灭，环境亮度阀值10档可调。光通量：1800lm；色温：6500 K±200K；在距补光灯20米处，亮度等级20时光斑照度不得超过40lx；工作温度-40℃～+80℃；工作湿度：10%~90%（无凝结）；外壳防护等级：IP67；符合GA/T1202-2014《交通技术监控成像补光装置通用技术规范》 3.定制支架 4.未尽事宜满足设计及现行技术、质量验收规范要求 | D99: 台 | E99: 9 | F99: 1500 | G99: 13500
A100: 12 | B100: 环保补光灯 | C100: 1.类型：环保补光灯 2.规格、型号：高度集成：集暖光LED频闪、爆闪和氙气白光、红外爆闪于一体；支持在 LED 频闪开启时，叶片自动切换成红外模式；触发气体放电爆闪时，LED爆闪同步闪光；LED 频闪熄灭时，叶片自动切换成白光模式， 触发氙气爆闪时，LED 爆闪不闪光 。（提供公安部有效检测报告复印件加盖原厂鲜章）；支持气体灯爆闪功能，并可通过控制转轴叶片进行白光和红外光切换，在低亮度情况下切换到红外模式 。（提供公安部有效检测报告复印件加盖原厂鲜章）；自动调节：内置光敏，根据环境光自动切换白天/夜晚模式，自动调节氙气灯亮度和切换LED灯亮灭；红外白光：支持红外/白光闪光，可自动切换红外和白光模式；视频同步：支持LED频闪同步相机视频补光；抓拍同步：支持LED爆闪或氙气爆闪同步相机抓拍补光；亮度可调：支持相机WEB或客户端设置LED频闪灯和氙气爆闪灯亮度；脉宽可调：支持相机WEB或者客户端设置LED频闪脉宽时间0~3ms；频率可调：支持相机WEB或者客户端设置LED频闪频率50Hz/60Hz/75Hz/90Hz/100Hz/120Hz；回电时间：爆闪回电时间＜60ms；触发方式：支持通过开关量触发方式检测闪光是否正常；频闪统计：支持统计频闪持续时间；爆闪计数：支持统计爆闪次数和触发次数；防干扰：支持脉宽检测触发；屏蔽误触发：支持屏蔽误触发干扰信号；符合GA/T1202-2014《交通技术监控成像补光装置通用技术规范》的检测报告，并提供检测报告。 3.定制支架 4.未尽事宜满足设计及现行技术、质量验收规范要求 | D100: 台 | E100: 6 | F100: 1800 | G100: 10800
A101: 13 | B101: 光敏控制器 | C101: 1.名称：光敏控制器 2.型号规格：光控自动开关，220V/AC。 多点光亮度检测，避免误触发； ARM控制器，检测灵敏可靠，支持自动、人工； 0-255级亮度输出； 支持RS485、100M以太网接口； 大功率无触点控制 220V16A； 智能微调:可根据经纬度、日出日落、晴天或阴雨天的实际光照度自动微调控制时间和方式； 照度标准：0.1～1000 Lux无级调整； 压铸铝密封外壳，防水防尘； 工作温度：-40℃～+80℃，适合南方酷暑地区 3未尽事宜满足设计及现行技术、质量验收规范要求 | D101: 个 | E101: 10 | F101: 65 | G101: 650
A102: 14 | B102: 智能终端盒 | C102: 1.名称：智能终端盒 2.规格型号：嵌入式Linux架构，高性能处理器；操作界面：WEB方式；视频输入：可接8路高清视频流及图片流，增配交换机最大可扩展至12路高清视频和12路高清图片同时接入；硬盘存储：支持2个SATA硬盘接口硬盘，存储容量不低于4TB；网络接口：配置不低于8个100M以太网接口，2个1000M自适应以太网接口；其他接口：具有报警输入，报警输出，RS232接口，RS485接口，USB3.0等常用接口；视频格式编码：H.264或H.265；图片格式：JPEG；图片合成：违章图片合成，字符叠加等；数据防删改功能：录像、图片无法直接删除；支持原始图片、合成图片、车牌图片、关联录像等交通数据及图片自动上传；支持3个FTP服务器同时存储，具有断网恢复后的断点续传功能；环境温度：-30℃-65℃；环境湿度：20%~90%（无凝结） 3.未尽事宜满足设计及现行技术、质量验收规范要求 | D102: 台 | E102: 3 | F102: 5000 | G102: 15000
A103: 15 | B103: 硬盘 6000G | C103: 1.名称：硬盘 2.规格型号：监控级专用硬盘，6000G；5400RPM；256M；SATA 3.未尽事宜满足设计及现行技术、质量验收规范要求 | D103: 块 | E103: 6 | F103: 2000 | G103: 12000
A104: 16 | B104: 高清硬盘录像机 | C104: 1.名称：高清硬盘录像机 2.规格型号：接入路数：≥16路网络摄像机；接入带宽：≥128M，转发性能：≥128M；视频输出口：VGA、HDMI各1个，支持VGA/HDMI视频同源输出；盘位：4个，4个内置SATA接口，支持10T；回放性能：同时回放8路1080P；通讯接口：2个千兆网口，1个USB2.0，1个USB3.0；USB接口：1个前置USB2.0接口/1个后置USB3.0接口；1个电源接口，电源适配器供电模式，输入DC 12V 电源；设备类型：1U标准机架式； 3.未尽事宜满足设计及现行技术、质量验收规范要求 | D104: 台 | E104: 3 | F104: 3500 | G104: 10500
A105: 17 | B105: 智能交通终端管理设备 | C105: 1.名称：智能交通终端管理设备 2.规格型号：嵌入式Linux架构，高性能处理器；操作界面：WEB方式；视频输入：可接8路高清视频流及图片流，增配交换机最大可扩展至12路高清视频和12路高清图片同时接入；硬盘存储：支持2个SATA硬盘接口硬盘，存储容量不低于4TB；网络接口：配置不低于8个100M以太网接口，2个1000M自适应以太网接口；其他接口：具有报警输入，报警输出，RS232接口，RS485接口，USB3.0等常用接口；视频格式编码：H.264或H.265；图片格式：JPEG；图片合成：违章图片合成，字符叠加等 ；数据防删改功能：录像、图片无法直接删除；支持原始图片、合成图片、车牌图片、关联录像等交通数据及图片自动上传；支持3个FTP服务器同时存储，具有断网恢复后的断点续传功能；环境温度：-30℃-65℃；环境湿度：20%~90%（无凝结） 3.未尽事宜满足设计及现行技术、质量验收规范要求 | D105: 台 | E105: 3 | F105: 8450 | G105: 25350
A106: 18 | B106: 智能控制机箱（含基础） | C106: 1.类型：智能控制机箱（含基础） 2.材质、规格： 系统功能:（1）具备中心联网控制、信息交互、数据交换、设备监测、集中供电及监测、智能门禁等功能；（2）实现智能化管理含电源控制和设备供电，用于集中设备网络和电源管理；（3）放置存储设备、光电转换和网络交换设备;（4） 实现中心平台联网集中管控；（5）强电弱电分别布线，规范有序，便于维护：所有外部进线(包括光纤)在接线层接线；（6）防雷及漏电保护设计，保护人员和内部设备安全；（7）2路交流220V/5A可控电源，电流电压实时监测和控制；（8）2可控直流负载12V供电，内置大电流开关电源，远程开关门控制；（10）具备温湿度检测、水位检测报警、无线照度遥测（太阳能供电，无需单独供电）接口；（11）内部组成主要包含：集中电控单元、集中光控单元、环境检测单元； 电气参数：（1）工作电压：220V±15％；（2）电气防护：过流、短路、断路、过压防护。 机械参数：（1）一体化结构设计，19〃标准机柜；（2）尺寸: 620*630*1450mm，2mm钢板厚度，双开门。 材质：304不锈钢，外表喷塑。 工作环境：防护等级 IP65。 3.机箱、机箱基础安装详机箱落地设计图 4.未尽事宜满足设计及现行技术、质量验收规范要求 | D106: 套 | E106: 1 | F106: 2000 | G106: 2000
A107: 19 | B107: 光端机挂箱 | C107: 1.名称：光端机挂箱 2.规格、型号：1.5mm304不锈钢喷塑，表喷“公安交通”标识图案文字，尺寸：350*450*250mm，温控单元为滚轴风扇温控系统，≥40℃开启，≤35℃关闭，框架为焊接式，防盗单元：门禁报警，门锁，浪涌保护等级：1.5KV，附件：空开，浪涌保护器，隔层板，220V10A供电接口，防尘网，设备安装导轨等 3.安装详设计施工图 4.未尽事宜满足设计及现行技术、质量验收规范要求 | D107: 台 | E107: 9 | F107: 520 | G107: 4680
A108: 20 | B108: 8电2光工业交换机 | C108: 1.名称：8电2光工业交换机 2.功能参数：（1）端口类型2路100Base-X、8路10/100 Base-T(X)以太网接口；（2）网络标准IEEE 802.3,IEEE 802.3u,IEEE 802.3x,IEEE 802.1d（3） 符合电信运营标准，平均无故障工作在5万小时以上; 电气参数：（1）电压12-48 VDC或18-30 VAC；（2） 雷击浪涌冲击防护(电源)：5000A(8/20μs)； 机械参数：安装方式：导轨式安装； 材质：工业铝合金外壳； 工作环境：（1）工作温度-40℃-85℃；（2）工作湿度10%-95%(无凝露) 3.未尽事宜满足设计及现行技术、质量验收规范要求 | D108: 台 | E108: 4 | F108: 980 | G108: 3920
A109: 21 | B109: 4光4电工业交换机 | C109: 1.名称：4光4电工业交换机 2.功能参数：（1）端口类型4路100Base-X、4路10/100Base-T(X)以太网接口（2） 网络标准IEEE 802.3,IEEE 802.3u,IEEE 802.3x,IEEE 802.1d（3） 符合电信运营标准，平均无故障工作在5万小时以上； 电气参数：（1） 电压12-48 VDC或18-30 VAC（2）雷击浪涌冲击防护(电源)：5000A(8/20μs)： 机械参数：安装方式：导轨式安装； 材质：工业铝合金外壳； 工作环境：（1） 工作温度-40℃-85℃（2） 工作湿度10%-95%(无凝露) 3.未尽事宜满足设计及现行技术、质量验收规范要求 | D109: 台 | E109: 1 | F109: 1500 | G109: 1500
A110: 22 | B110: 4m悬臂电子警察杆 | C110: 1.类型：摄像机杆 2.规格、型号：八棱锥型变径立杆，表面热锓锌处理。立杆外径、横杆外径及壁厚详见对应长度杆件大样图，可抗8级台风 3.立杆6.5m，横杆4m 4.含装配、吊装等 5.包括配套附件等制作安装 6.摄像机杆做法详悬臂电子警察安装结构图 7.200mm厚片石垫层表层灌砂，100mm厚C10细石混凝土垫层、C30钢筋混凝土基础 8.混凝土运输及浇筑方式：投标人自行考虑 9.钢筋连接方式、安装方式：投标人自行考虑 9.未尽事宜满足设计及现行技术、质量验收规范要求 | D110: 套 | E110: 1 | F110: 9000 | G110: 9000
A111: 23 | B111: 6m悬臂电子警察杆 | C111: 1.类型：摄像机杆 2.规格、型号：八棱锥型变径立杆，表面热锓锌处理。立杆外径、横杆外径及壁厚详见对应长度杆件大样图，可抗8级台风 3.立杆6.5m，横杆6m 4.含装配、吊装等 5.包括配套附件等制作安装 6.摄像机杆做法详悬臂电子警察安装结构图 7.200mm厚片石垫层表层灌砂，100mm厚C10细石混凝土垫层、C30钢筋混凝土基础 8.混凝土运输及浇筑方式：投标人自行考虑 9.钢筋连接方式、安装方式：投标人自行考虑 9.未尽事宜满足设计及现行技术、质量验收规范要求 | D111: 套 | E111: 1 | F111: 12000 | G111: 12000
A112: 24 | B112: 10m悬臂电子警察杆 | C112: 1.类型：摄像机杆 2.规格、型号：八棱锥型变径立杆，表面热锓锌处理。立杆外径、横杆外径及壁厚详见对应长度杆件大样图，可抗8级台风 3.立杆6.5m，横杆10m 4.含装配、吊装等 5.包括配套附件等制作安装 6.摄像机杆做法详悬臂电子警察安装结构图 7.200mm厚片石垫层表层灌砂，100mm厚C10细石混凝土垫层、C30钢筋混凝土基础 8.混凝土运输及浇筑方式：投标人自行考虑 9.钢筋连接方式、安装方式：投标人自行考虑 9.未尽事宜满足设计及现行技术、质量验收规范要求 | D112: 套 | E112: 4 | F112: 15000 | G112: 60000
A113: 26 | B113: 悬臂式遮水帽 | C113: 1.类型：悬臂式遮水帽 2.材质、规格尺寸：Ф290*300mm封盖部分Ф230/290半球，国标301不锈钢材质，开缺口，成型后打磨至表面平整、光滑，黄色烤漆 3.未尽事宜满足设计及现行技术、质量验收规范要求 | D113: 套 | E113: 6 | F113: 65 | G113: 390
A114: 27 | B114: 电源线 RVV3×1.5mm2 | C114: 1.类型：电源线 2.材质：铜芯 3.聚氯乙烯绝缘聚氯乙烯护套软线 额定电压：300/500V，规格：RVV3×1.5mm²，导体材质：无氧铜，绝缘材料：聚氯乙烯，执行标准：GB/T 5023.5-2008额定电压450/750V及以下聚氯乙烯绝缘电缆 4.未尽事宜满足设计及现行技术、质量验收规范要求 | D114: m | E114: 1000 | F114: 8 | G114: 8000
A115: 28 | B115: 单模4芯室外光纤 | C115: 1.名称：单模4芯室外光纤 2.规格：4芯 3.敷设方式：管内或线槽内敷设 4.未尽事宜满足设计及现行技术、质量验收规范要求 | D115: m | E115: 1000 | F115: 4 | G115: 4000
A116: 29 | B116: 接地线 RVV1×10.0mm2 | C116: 1.类型：电源线 2.材质：铜芯 3.规格、型号：额定电压：300/500V，规格RVV1×10.0mm²，导体材质：无氧铜，绝缘材料：聚氯乙烯，执行标准：GB/T 5023.5-2008 4.未尽事宜满足设计及现行技术、质量验收规范要求 | D116: m | E116: 100 | F116: 13 | G116: 1300
A117: 30 | B117: 接地极 L50×5×2500mm | C117: 1.名称：接地极 2.类型：接地极 3.材质：镀锌角钢 4.规格：L50×5×2500mm 5.土质：综合 6.基础接地形式：详设计 7.未尽事宜满足设计及现行技术、质量验收规范要求 | D117: 根 | E117: 40 | F117: 40 | G117: 1600
A118: 31 | B118: 热镀锌接地扁钢 40×4mm | C118: 1.名称：接地母线 2.材质：镀锌扁钢 3.规格：-40×4mm 4.未尽事宜满足设计及现行技术、质量验收规范要求 | D118: m | E118: 100 | F118: 13 | G118: 1300
A119: 32 | B119: 尾纤盒 | C119: 1.名称：尾纤盒 2.规格型号：尾纤盒支持导轨式安装，含尾纤、跳线（SC-SC）、尾纤盒、耦合器等其他耗材 3.未尽事宜满足设计及现行技术、质量验收规范要求 | D119: 台 | E119: 7 | F119: 350 | G119: 2450
A120: 33 | B120: 电子警察调试 | C120: 1.名称：电子警察调试 2.型号：综合 3.未尽事宜满足设计及现行技术、质量验收规范要求 | D120: 系统 | E120: 1 | F120: 2000 | G120: 2000
A121: 五 | B121: 监控设施设备
A122: 1 | B122: 挂箱 | C122: 1.名称：挂箱 2.规格、型号：具体规格尺寸详设计施工图 基本参数：（1）温控单元：滚轴风扇温控系统，≥40℃开启，≤35℃关闭；（2）防盗单元：门禁报警，门锁；（3）附件：空开，浪涌保护器，隔层板，供电接口，防尘网，设备安装导轨 电气参数：（1）输出：220V10A；（2）浪涌保护等级：1.5KV。 机械参数：（1）表喷“公安交通”标识图案文字； 材质：（1）框架：焊接式；（2）1.5mm304不锈钢喷塑。 工作环境：（1）湿度：5%~95%@40℃，无凝结；（2）工作环境温度：-40℃～+80℃； 3.安装详设计施工图 4.未尽事宜满足设计及现行技术、质量验收规范要求 | D122: 台 | E122: 2 | F122: 800 | G122: =E122*F122 -> 1600
A123: 2 | B123: 悬臂立杆 φ165×6×8000mm | C123: 1.类型：悬臂立杆 2.材质：悬臂式立杆Φ165×6×8000mm，热浸锌杆件，立柱8米，横臂3-5米 3.含装配、吊装等 4.包括配套附件等制作安装 5.基础、立杆做法详设计施工图 6.未尽事宜满足设计及现行技术、质量验收规范要求 | D123: 根 | E123: 2 | F123: 5500 | G123: 11000
A124: 3 | B124: 电源线 RVV3×6mm2 | C124: 1.类型：电源线 2.材质：铜芯 3.规格、型号：RVV3×6mm²，导体材质：无氧铜，绝缘材料：聚氯乙烯，执行标准：GB/T 5023.5-2008 4.未尽事宜满足设计及现行技术、质量验收规范要求 | D124: m | E124: 500 | F124: 20 | G124: 10000
A125: 4 | B125: 4光1电工业交换机 | C125: 1.名称：4光1电工业交换机 2.规格型号：端口类型1路100Base-X、4路10/100Base-T(X)以太网接口，网络标准IEEE 802.3,IEEE 802.3u,IEEE 802.3x,IEEE 802.1d，符合电信运营标准，平均无故障工作在5万小时以上，电压12-48 VDC或18-30 VAC，雷击浪涌冲击防护(电源)：5000A(8/20μs)；安装方式：导轨式安装，工业铝合金外壳；工作温度-40℃-85℃，工作湿度10%-95%(无凝露) 3.未尽事宜满足设计及现行技术、质量验收规范要求 | D125: 台 | E125: 1 | F125: 800 | G125: 800
A126: 5 | B126: 4光4电工业交换机 | C126: 1.名称：4光4电工业交换机 2.规格型号： 功能参数：（1）端口类型4路100Base-X、4路10/100Base-T(X)以太网接口（2） 网络标准IEEE 802.3,IEEE 802.3u,IEEE 802.3x,IEEE 802.1d（3） 符合电信运营标准，平均无故障工作在5万小时以上； 电气参数：（1） 电压12-48 VDC或18-30 VAC（2）雷击浪涌冲击防护(电源)：5000A(8/20μs)： 机械参数：安装方式：导轨式安装； 材质：工业铝合金外壳； 工作环境：（1） 工作温度-40℃-85℃（2） 工作湿度10%-95%(无凝露) 3.未尽事宜满足设计及现行技术、质量验收规范要求 | D126: 台 | E126: 2 | F126: 1500 | G126: 3000
A127: 6 | B127: 接地极 L50×5×2500mm | C127: 1.名称：接地极 2.类型：接地极 3.材质：镀锌角钢 4.规格：L50×5×2500mm 5.土质：综合 6.基础接地形式：详设计 7.未尽事宜满足设计及现行技术、质量验收规范要求 | D127: 根 | E127: 2 | F127: 39 | G127: 78
A128: 7 | B128: 热镀锌接地扁钢40×4mm | C128: 1.名称：接地母线 2.材质：镀锌扁钢 3.规格：-40×4mm 4.未尽事宜满足设计及现行技术、质量验收规范要求 | D128: m | E128: 5 | F128: 13 | G128: 65
A129: 8 | B129: 接地线 RVV1×10.0mm2 | C129: 1.类型：电源线 2.材质：铜芯 3.规格、型号：额定电压：300/500V，规格RVV1×10.0mm²，导体材质：无氧铜，绝缘材料：聚氯乙烯，执行标准：GB/T 5023.5-2008 4.未尽事宜满足设计及现行技术、质量验收规范要求 | D129: m | E129: 30 | F129: 13 | G129: 390
A130: 六 | B130: 全透型主动发光标志系统
A131: 1 | B131: 挂箱 350×450×250mm | C131: 1.名称：挂箱 2.规格、型号：350×450×250mm （1）全透式标志底板为透明板，反光膜采用电刻加工、或者透明油墨（反光膜专用型）丝网印刷，面板发光显示均匀无任何阴影，文字图形显示的边界轮廓清晰； （2）标志表面文字图形采用高透光型微棱镜IV类反光膜，白色透光率≥25%，透光均匀性1.2:1～1.3:1，24V电压时的标志表面白色反光膜表面照度≥2000LX/m2； 3.未尽事宜满足设计及现行技术、质量验收规范要求 | D131: 台 | E131: 9 | F131: 650 | G131: =E131*F131 -> 5850
A132: 2 | B132: 车辆485雷达 | C132: 1、名称：车辆458雷达 2、规格型号：单模单纤，千兆，SC头，传输距离20公里。 3.未尽事宜满足设计及现行技术、质量验收规范要求 | D132: 套 | E132: 6 | F132: 9800 | G132: 58800
A133: 3 | B133: 光纤收发器 | C133: 1.名称：光纤收发器 2.规格型号：一路网线接口，一路光纤接口；2)100~240V AC 50/60HZ 交流供电； 采用单模双芯、LC 接口光纤，传输距离 15KM；4)无需任何驱动，连接即可使用。 提供厂家3C认证证书，并加盖厂家鲜章； 提供CNAS第三方检测报告，并加盖厂家鲜章；红色字体不具备； 提供国家级认证的HDR认证证书，并加盖厂家鲜章； 提供厂家 国家级 信息系统安全等级（三级）保护备案证明，并加盖厂家鲜章； 3.未尽事宜满足设计及现行技术、质量验收规范要求 | D133: 对 | E133: 6 | F133: 1100 | G133: 6600
A134: 七 | B134: 混凝土模板及支架
A135: 1 | B135: 现浇混凝土模板 管道基础 | C135: 1.支模高度：综合 2.模板及支架材料:由投标人根据设计文件结合自身的技术能力综合考虑 3.本项目投标人应根据施工经验，现场实际情况和企业自身情况综合报价 4.未尽事宜满足设计及现行技术、质量验收规范要求 | D135: m2 | E135: 60 | F135: 60 | G135: =E135*F135 -> 3600
A136: 2 | B136: 现浇混凝土模板 管道包封 | C136: 1.支模高度：综合 2.模板及支架材料:由投标人根据设计文件结合自身的技术能力综合考虑 3.本项目投标人应根据施工经验，现场实际情况和企业自身情况综合报价 4.未尽事宜满足设计及现行技术、质量验收规范要求 | D136: m2 | E136: 60 | F136: 60 | G136: 3600
A137: 3 | B137: 现浇混凝土模板 垫层 | C137: 1.支模高度：综合 2.模板及支架材料:由投标人根据设计文件结合自身的技术能力综合考虑 3.本项目投标人应根据施工经验，现场实际情况和企业自身情况综合报价 4.未尽事宜满足设计及现行技术、质量验收规范要求 | D137: m2 | E137: 60 | F137: 60 | G137: 3600
A138: 合 计 | G138: =SUM(G4:G137) -> 1160564.60
A139: 说明： 1.投标人根据施工工艺、工序及国家现行规范自行踏勘现场后综合考虑进行报价，结算时不作调整; 2.全费用综合单价包含人工费、所有材料费（含辅材和周转材料费）、机械设备费、工具器具费、临时设施及措施费、大型机械进出场及场内转运费、下车费、吊装费、规费、管理费、配合费、安全文明施工费、以及各种风险费、保险费、施工过程中办理的各种手续费、降水费、排水费、各种检测费、利润、税费等完成该工作所需的全部费用，结算时无论涨跌、工程量增减或其它任何风险因素，均不作调整。。 3.施工中所用临时配电箱、用电线路、临时用水管道、开关箱、机具等从建设方提供的接口处接出，所有材料、设备及安装费用含在综合单价中。 4.投标人负责协调交警以及验收移交工作，费用不单独计取。。 5.现场安全环保文明施工管理要求：（1）由公司统一发放印有“兴绿园林”字样和LOGO的安全帽和反光背心，班组按实名制领取，使用完后交回项目部，否则按采购费用扣款，其余参照合同附件中安全环保管理协议执行。（2）现场雾炮机由甲方提供，投标单位需安排人员管理使用，人工费、油费及管理费用综合考虑到投标报价中，不单独计取。 （3）防尘网由甲方提供，投标单位安排人员进行覆盖、回收、现场转移等，人工费综合考虑到投标报价中，不单独计取。
